fUSD/lending_fUSD_20240921
["ID","MTS","AMOUNT","RATE_DAILY","PERIOD"]
[338764680,1726911042214,-236.15,0.00013514,2]
[338764681,1726911042223,-600.0,0.0001353,2]
[338764683,1726911042233,-294.89,0.00013535,2]
[338764685,1726911042243,-603.94,0.000136,2]
[338764687,1726911042252,-323.50776443,0.00013669,2]
[338764689,1726911042262,-1842.28,0.00013699,2]
[338764692,1726911042271,-500.0,0.00013699,2]
[338764694,1726911042280,-2751.0,0.00013699,2]
[338764695,1726911042290,-200.0,0.00013699,2]
[338764697,1726911042300,-150.0,0.00013699,2]
[338764699,1726911042309,-3296.55,0.000137,2]
[338764701,1726911042319,-3296.55,0.000137,2]
[338764704,1726911042328,-3296.55,0.000137,2]
[338764706,1726911042338,-3296.55,0.000137,2]
[338764708,1726911042347,-3296.55,0.000137,2]
[338764709,1726911042356,-5122.11,0.00013799,2]
[338764712,1726911042366,-7107.35,0.00013799,2]
[338764713,1726911042375,-811.13,0.00013799,2]
[338764716,1726911042385,-593.89,0.00013799,2]
[338764718,1726911042394,-938.1,0.00013799,2]
[338764720,1726911042404,-500.0,0.00013799,2]
[338764721,1726911042414,-500.0,0.00013799,2]
[338764723,1726911042423,-500.0,0.00013799,2]
[338764725,1726911042432,-500.0,0.00013799,2]
[338764727,1726911042442,-500.0,0.00013799,2]
[338764729,1726911042452,-500.0,0.00013799,2]
[338764731,1726911042463,-20000.84,0.00013799,2]
[338764733,1726911042472,-500.0,0.00013799,2]
[338764735,1726911042482,-500.0,0.00013799,2]
[338764737,1726911042492,-43370.23,0.00013799,2]
[338764739,1726911042502,-500.0,0.00013799,2]
[338764741,1726911042512,-500.0,0.00013799,2]
[338764743,1726911042521,-500.0,0.00013799,2]
[338764744,1726911042531,-500.0,0.00013799,2]
[338764746,1726911042540,-2347.16,0.00013799,2]
[338764748,1726911042549,-500.0,0.00013799,2]
[338764750,1726911042558,-500.0,0.00013799,2]
[338764752,1726911042568,-500.0,0.00013799,2]
[338764754,1726911042578,-500.0,0.00013799,2]
[338764756,1726911042587,-500.0,0.00013799,2]
[338764758,1726911042597,-240.16,0.00013799,2]
[338764760,1726911042606,-500.0,0.00013799,2]
[338764762,1726911042615,-500.0,0.00013799,2]
[338764764,1726911042625,-500.0,0.00013799,2]
[338764766,1726911042635,-500.0,0.00013799,2]
[338764768,1726911042645,-500.0,0.00013799,2]
[338764770,1726911042655,-500.0,0.00013799,2]
[338764772,1726911042665,-500.0,0.00013799,2]
[338764774,1726911042675,-500.0,0.00013799,2]
[338764776,1726911042684,-500.0,0.00013799,2]
[338764778,1726911042696,-500.0,0.00013799,2]
[338764780,1726911042706,-500.0,0.00013799,2]
[338764782,1726911042716,-500.0,0.00013799,2]
[338764784,1726911042726,-500.0,0.00013799,2]
[338764786,1726911042736,-500.0,0.00013799,2]
[338764788,1726911042746,-500.0,0.00013799,2]
[338764790,1726911042756,-500.0,0.00013799,2]
[338764792,1726911042766,-500.0,0.00013799,2]
[338764794,1726911042776,-500.0,0.00013799,2]
[338764796,1726911042785,-500.0,0.00013799,2]
[338764798,1726911042795,-45212.1892639,0.000138,2]
[338764800,1726911042804,-400.0,0.00013838,2]
[338764802,1726911042814,-500.0,0.00013878,2]
[338764804,1726911042824,-537.78,0.00013878,2]
[338764806,1726911042834,-500.0,0.00013878,2]
[338764808,1726911042845,-2166.35,0.00013878,2]
[338764811,1726911042855,-482.10535448,0.00013878,2]
[338764812,1726911042865,-500.0,0.00013878,2]
[338764814,1726911042875,-471.88053325,0.00013878,2]
[338764817,1726911042889,-500.0,0.00013878,2]
[338764819,1726911042899,-500.0,0.00013878,2]
[338764821,1726911042908,-500.0,0.00013878,2]
[338764823,1726911042918,-500.0,0.00013878,2]
[338764826,1726911042927,-500.0,0.00013878,2]
[338764829,1726911042938,-500.0,0.00013878,2]
[338764831,1726911042947,-500.0,0.00013878,2]
[338764834,1726911042956,-500.0,0.00013878,2]
[338764836,1726911042966,-5122.11,0.00013889,2]
[338764839,1726911042975,-7107.35,0.00013889,2]
[338764842,1726911042984,-811.13,0.00013889,2]
[338764847,1726911042994,-593.89,0.00013889,2]
[338764851,1726911043004,-938.1,0.00013889,2]
[338764856,1726911043014,-423.51,0.00013889,2]
[338764862,1726911043024,-20000.84,0.00013889,2]
[338764866,1726911043034,-500.0,0.00013889,2]
[338764869,1726911043044,-43370.23,0.00013889,2]
[338764872,1726911043053,-500.0,0.00013889,2]
[338764875,1726911043063,-490.0,0.00013889,2]
[338764878,1726911043072,-500.0,0.00013889,2]
[338764880,1726911043082,-2347.16,0.00013889,2]
[338764882,1726911043092,-500.0,0.00013889,2]
[338764884,1726911043102,-500.0,0.00013889,2]
[338764886,1726911043111,-500.0,0.00013889,2]
[338764888,1726911043121,-258.34,0.00013889,2]
[338764890,1726911043131,-500.0,0.00013889,2]
[338764892,1726911043141,-500.0,0.00013889,2]
[338764894,1726911043150,-500.0,0.00013889,2]
[338764896,1726911043160,-500.0,0.00013889,2]
[338764897,1726911043170,-500.0,0.00013889,2]
[338764900,1726911043179,-500.0,0.00013889,2]
[338764902,1726911043189,-500.0,0.00013889,2]
[338764903,1726911043198,-500.0,0.00013889,2]
[338764905,1726911043208,-500.0,0.00013889,2]
[338764908,1726911043220,-500.0,0.00013889,2]
[338764910,1726911043230,-500.0,0.00013889,2]
[338764912,1726911043239,-500.0,0.00013889,2]
[338764914,1726911043248,-500.0,0.00013889,2]
[338764916,1726911043258,-500.0,0.00013889,2]
[338764918,1726911043268,-579.1388864,0.00013889,2]
[338764920,1726911043277,-316.172857,0.00013889,2]
[338764921,1726911043287,-500.0,0.00013889,2]
[338764923,1726911043296,-500.0,0.00013889,2]
[338764924,1726911043307,-240.16,0.00013895,2]
[338764925,1726911043316,-500.0,0.00013895,2]
[338764926,1726911043326,-8021.67,0.00013895,2]
[338764927,1726911043335,-1014.23,0.00013895,2]
[338764928,1726911043345,-500.0,0.00013895,2]
[338764929,1726911043355,-2258.1,0.00013897,2]
[338764930,1726911043365,-500.0,0.00013897,2]
[338764931,1726911043375,-500.0,0.00013897,2]
[338764932,1726911043385,-500.0,0.00013897,2]
[338764933,1726911043395,-500.0,0.00013897,2]
[338764934,1726911043404,-500.0,0.00013897,2]
[338764935,1726911043415,-500.0,0.00013897,2]
[338764936,1726911043425,-500.0,0.00013897,2]
[338764938,1726911043435,-500.0,0.00013897,2]
[338764940,1726911043445,-500.0,0.00013897,2]
[338764942,1726911043455,-500.0,0.00013898,2]
[338764944,1726911043465,-500.0,0.00013898,2]
[338764946,1726911043479,-500.0,0.00013898,2]
[338764948,1726911043488,-433.41594782,0.00013898,2]
[338764950,1726911043497,-500.0,0.00013898,2]
[338764952,1726911043507,-500.0,0.00013898,2]
[338764954,1726911043517,-500.0,0.00013898,2]
[338764956,1726911043526,-500.0,0.00013898,2]
[338764958,1726911043535,-318.69690699,0.00013898,2]
[338764961,1726911043545,-500.0,0.00013898,2]
[338764964,1726911043555,-500.0,0.00013898,2]
[338764966,1726911043565,-5122.11,0.00013899,2]
[338764968,1726911043575,-7107.35,0.00013899,2]
[338764970,1726911043584,-811.13,0.00013899,2]
[338764972,1726911043594,-593.89,0.00013899,2]
[338764974,1726911043604,-938.1,0.00013899,2]
[338764976,1726911043614,-20000.84,0.00013899,2]
[338764978,1726911043624,-500.0,0.00013899,2]
[338764980,1726911043633,-43370.23,0.00013899,2]
[338764982,1726911043644,-500.0,0.00013899,2]
[338764984,1726911043653,-2347.16,0.00013899,2]
[338764987,1726911043663,-190.8387071,0.00013899,2]
[338764989,1726911043673,-500.0,0.00013899,2]
[338764991,1726911043683,-500.0,0.00013899,2]
[338764993,1726911043693,-500.0,0.00013899,2]
[338764995,1726911043702,-500.0,0.00013899,2]
[338764997,1726911043717,-500.0,0.00013899,2]
[338764999,1726911043726,-500.0,0.00013899,2]
[338765001,1726911043736,-500.0,0.00013899,2]
[338765003,1726911043746,-217.85519879,0.00013899,2]
[338765005,1726911043756,-500.0,0.00013899,2]
[338765007,1726911043766,-619.24377645,0.00013899,2]
[338765009,1726911043775,-500.0,0.00013899,2]
[338765011,1726911043785,-500.0,0.00013899,2]
[338765013,1726911043794,-398.58733452,0.000139,2]
[338765015,1726911043804,-500.0,0.00013904,2]
[338765017,1726911043814,-201.0,0.0001391,2]
[338765019,1726911043823,-151.77,0.00013918,30]
[338765021,1726911043832,-323.50776443,0.00013925,2]
[338765022,1726911043842,-158.10949927,0.00013943,2]
[338765024,1726911043852,-445.47503088,0.00013944,2]
[338765026,1726911043861,-448.51950514,0.00013953,2]
[338765029,1726911043871,-537.78,0.00013953,2]
[338765030,1726911043880,-500.0,0.00013953,2]
[338765032,1726911043890,-2166.35,0.00013953,2]
[338765034,1726911043899,-500.0,0.00013953,2]
[338765036,1726911043908,-500.0,0.00013953,2]
[338765038,1726911043918,-500.0,0.00013953,2]
[338765040,1726911043927,-500.0,0.00013953,2]
[338765041,1726911043936,-500.0,0.00013953,2]
[338765043,1726911043946,-500.0,0.00013953,2]
[338765045,1726911043955,-5122.11,0.00013964,2]
[338765047,1726911043969,-7107.35,0.00013964,2]
[338765049,1726911043982,-258.34,0.00013964,2]
[338765051,1726911043992,-8021.67,0.00013964,2]
[338765053,1726911044002,-811.13,0.00013964,2]
[338765055,1726911044011,-500.0,0.00013964,2]
[338765057,1726911044021,-593.89,0.00013964,2]
[338765059,1726911044031,-938.1,0.00013964,2]
[338765061,1726911044041,-20000.84,0.00013964,2]
[338765063,1726911044050,-500.0,0.00013964,2]
[338765065,1726911044060,-43370.23,0.00013964,2]
[338765067,1726911044069,-500.0,0.00013964,2]
[338765069,1726911044078,-2347.16,0.00013964,2]
[338765070,1726911044087,-500.0,0.00013964,2]
[338765072,1726911044096,-500.0,0.00013964,2]
[338765074,1726911044105,-500.0,0.00013964,2]
[338765076,1726911044114,-151.13,0.00013973,2]
[338765078,1726911044124,-150.0,0.00013973,2]
[338765080,1726911044132,-150.0,0.00013973,2]
[338765082,1726911044142,-150.0,0.00013973,2]
[338765084,1726911044151,-150.0,0.00013973,2]
[338765086,1726911044159,-150.0,0.00014043,2]
[338765088,1726911044168,-811.0,0.00014043,2]
[338765090,1726911044178,-558.0,0.00014043,2]
[338765092,1726911044187,-935.66,0.00014043,2]
[338765094,1726911044196,-1903.0,0.00014043,2]
[338765096,1726911044206,-553.0,0.00014043,2]
[338765098,1726911044218,-3347.0,0.00014043,2]
[338765099,1726911044227,-806.0,0.00014043,2]
[338765102,1726911044236,-248.0,0.00014043,2]
[338765103,1726911044246,-1147.0,0.00014043,2]
[338765106,1726911044255,-5867.0,0.00014043,2]
[338765108,1726911044265,-150.0,0.00014043,2]
[338765110,1726911044274,-13490.0,0.00014043,2]
[338765112,1726911044283,-625.0,0.00014043,2]
[338765114,1726911044292,-1262.0,0.00014043,2]
[338765116,1726911044301,-448.0,0.00014043,2]
[338765118,1726911044312,-150.0,0.00014059,2]
[338765119,1726911044322,-201.0,0.0001407,2]
[338765121,1726911044331,-300.08,0.00014117,2]
[338765123,1726911044340,-700.0,0.00014178,2]
[338765125,1726911044350,-323.50776443,0.00014181,2]
[338765127,1726911044359,-201.0,0.0001422,2]
[338765129,1726911044368,-387.897753,0.00014247,2]
[338765131,1726911044377,-537.78,0.00014256,2]
[338765133,1726911044387,-500.0,0.00014256,2]
[338765135,1726911044396,-2166.35,0.00014256,2]
[338765137,1726911044405,-500.0,0.00014256,2]
[338765139,1726911044415,-500.0,0.00014256,2]
[338765141,1726911044424,-782.0,0.00014257,2]
[338765142,1726911044433,-2258.1,0.00014266,2]
[338765144,1726911044443,-500.0,0.00014266,2]
[338765146,1726911044452,-500.0,0.00014266,2]
[338765149,1726911044467,-500.0,0.00014266,2]
[338765151,1726911044476,-500.0,0.00014266,2]
[338765153,1726911044485,-5122.11,0.00014267,2]
[338765155,1726911044495,-7107.35,0.00014267,2]
[338765157,1726911044504,-811.13,0.00014267,2]
[338765159,1726911044514,-593.89,0.00014267,2]
[338765161,1726911044524,-938.1,0.00014267,2]
[338765163,1726911044535,-20000.84,0.00014267,2]
[338765165,1726911044545,-500.0,0.00014267,2]
[338765167,1726911044555,-43370.23,0.00014267,2]
[338765169,1726911044566,-500.0,0.00014267,2]
[338765171,1726911044575,-2347.16,0.00014267,2]
[338765173,1726911044587,-500.0,0.00014267,2]
[338765175,1726911044596,-500.0,0.00014267,2]
[338765177,1726911044606,-557.15,0.00014267,2]
[338765179,1726911044616,-8021.67,0.00014268,2]
[338765181,1726911044627,-500.0,0.00014268,2]
[338765183,1726911044636,-537.78,0.00014277,2]
[338765185,1726911044645,-500.0,0.00014277,2]
[338765187,1726911044655,-500.0,0.00014278,2]
[338765189,1726911044665,-500.0,0.00014278,2]
[338765192,1726911044674,-151.0,0.00014278,2]
[338765194,1726911044683,-151.0,0.00014278,2]
[338765196,1726911044692,-259.135447,0.00014278,2]
[338765198,1726911044701,-259.135447,0.00014278,2]
[338765199,1726911044711,-151.0,0.00014278,2]
[338765201,1726911044722,-151.0,0.00014278,2]
[338765203,1726911044731,-192.435675,0.00014278,2]
[338765205,1726911044740,-192.435675,0.00014278,2]
[338765207,1726911044749,-151.0,0.00014278,2]
[338765209,1726911044758,-151.0,0.00014279,2]
[338765211,1726911044767,-8021.67,0.00014287,2]
[338765213,1726911044776,-500.0,0.00014287,2]
[338765215,1726911044785,-5122.11,0.00014288,2]
[338765217,1726911044795,-7107.35,0.00014288,2]
[338765219,1726911044804,-811.13,0.00014288,2]
[338765221,1726911044813,-593.89,0.00014288,2]
[338765223,1726911044823,-938.1,0.00014288,2]
[338765225,1726911044832,-20000.84,0.00014288,2]
[338765227,1726911044841,-500.0,0.00014288,2]
[338765229,1726911044851,-43370.23,0.00014288,2]
[338765231,1726911044860,-500.0,0.00014288,2]
[338765233,1726911044869,-2347.16,0.00014288,2]
[338765235,1726911044879,-500.0,0.00014288,2]
[338765237,1726911044893,-500.0,0.00014288,2]
[338765239,1726911044902,-500.0,0.00014297,2]
[338765241,1726911044911,-444.10175694,0.00014297,2]
[338765243,1726911044921,-500.0,0.00014297,2]
[338765245,1726911044931,-500.0,0.00014297,2]
[338765247,1726911044941,-500.0,0.00014297,2]
[338765249,1726911044952,-500.0,0.00014297,2]
[338765251,1726911044965,-500.0,0.00014297,2]
[338765253,1726911044974,-500.0,0.00014297,2]
[338765255,1726911044983,-500.0,0.00014297,2]
[338765257,1726911044993,-500.0,0.00014297,2]
[338765259,1726911045002,-500.0,0.00014297,2]
[338765261,1726911045012,-500.0,0.00014297,2]
[338765262,1726911045021,-500.0,0.00014297,2]
[338765264,1726911045033,-500.0,0.00014297,2]
[338765266,1726911045043,-500.0,0.00014297,2]
[338765268,1726911045052,-500.0,0.00014297,2]
[338765271,1726911045062,-500.0,0.00014297,2]
[338765273,1726911045072,-500.0,0.00014297,2]
[338765275,1726911045082,-500.0,0.00014297,2]
[338765276,1726911045091,-500.0,0.00014297,2]
[338765277,1726911045101,-500.0,0.00014297,2]
[338765278,1726911045112,-500.0,0.00014297,2]
[338765279,1726911045123,-500.0,0.00014297,2]
[338765280,1726911045134,-500.0,0.00014297,2]
[338765281,1726911045144,-500.0,0.00014297,2]
[338765282,1726911045154,-500.0,0.00014297,2]
[338765283,1726911045164,-2258.1,0.00014297,2]
[338765305,1726911045437,-500.0,0.00014297,2]
[338765307,1726911045448,-537.78,0.00014297,2]
[338765309,1726911045458,-366.78692586,0.00014297,2]
[338765311,1726911045469,-500.0,0.00014297,2]
[338765313,1726911045479,-500.0,0.00014297,2]
[338765315,1726911045489,-500.0,0.00014297,2]
[338765317,1726911045499,-205.37588263,0.00014297,2]
[338765319,1726911045509,-292.1547181,0.00014297,2]
[338765321,1726911045518,-500.0,0.00014297,2]
[338765323,1726911045529,-500.0,0.00014297,2]
[338765325,1726911045539,-500.0,0.00014297,2]
[338765327,1726911045549,-500.0,0.00014297,2]
[338765329,1726911045559,-500.0,0.00014297,2]
[338765331,1726911045568,-300.88210741,0.00014297,2]
[338765333,1726911045578,-500.0,0.00014297,2]
[338765335,1726911045587,-500.0,0.00014297,2]
[338765337,1726911045596,-500.0,0.00014297,2]
[338765338,1726911045606,-500.0,0.00014297,2]
[338765339,1726911045616,-411.63361461,0.00014297,2]
[338765340,1726911045625,-248.11653492,0.00014297,2]
[338765341,1726911045636,-500.0,0.00014297,2]
[338765342,1726911045646,-500.0,0.00014297,2]
[338765343,1726911045655,-5122.11,0.00014298,2]
[338765344,1726911045665,-7107.35,0.00014298,2]
[338765345,1726911045675,-8021.67,0.00014298,2]
[338765346,1726911045685,-811.13,0.00014298,2]
[338765347,1726911045695,-500.0,0.00014298,2]
[338765348,1726911045705,-593.89,0.00014298,2]
[338765349,1726911045715,-938.1,0.00014298,2]
[338765350,1726911045725,-20000.84,0.00014298,2]
[338765351,1726911045734,-500.0,0.00014298,2]
[338765352,1726911045744,-43370.23,0.00014298,2]
[338765353,1726911045755,-500.0,0.00014298,2]
[338765354,1726911045765,-500.0,0.00014298,2]
[338765356,1726911045775,-500.0,0.00014298,2]
[338765359,1726911045785,-2347.16,0.00014298,2]
[338765361,1726911045795,-500.0,0.00014298,2]
[338765363,1726911045804,-493.19278123,0.00014298,2]
[338765364,1726911045814,-368.477,0.00014342,2]
[338765367,1726911045824,-201.0,0.0001438,2]
[338765368,1726911045833,-1014.68,0.0001438,2]
[338765371,1726911045843,-5122.11,0.00014383,2]
[338765373,1726911045852,-7107.35,0.00014383,2]
[338765375,1726911045862,-811.13,0.00014383,2]
[338765377,1726911045871,-593.89,0.00014383,2]
[338765379,1726911045882,-938.1,0.00014383,2]
[338765380,1726911045892,-20000.84,0.00014383,2]
[338765382,1726911045901,-500.0,0.00014383,2]
[338765384,1726911045911,-43370.23,0.00014383,2]
[338765386,1726911045920,-500.0,0.00014383,2]
[338765388,1726911045930,-2347.16,0.00014383,2]
[338765390,1726911045939,-500.0,0.00014383,2]
[338765392,1726911045948,-151.0,0.00014383,2]
[338765394,1726911045958,-151.0,0.00014383,2]
[338765396,1726911045968,-263.869512,0.00014383,2]
[338765398,1726911045978,-263.869512,0.00014383,2]
[338765400,1726911045988,-1842.28,0.00014384,2]
[338765402,1726911045997,-153.825284,0.00014384,2]
[338765404,1726911046007,-8021.67,0.00014392,2]
[338765406,1726911046018,-500.0,0.00014392,2]
[338765408,1726911046027,-150.0,0.0001442,2]
[338765410,1726911046036,-215.0,0.0001442,2]
[338765412,1726911046046,-323.50776443,0.00014438,2]
[338765414,1726911046056,-215.0,0.0001448,2]
[338765416,1726911046066,-152.0,0.00014487,3]
[338765418,1726911046076,-1120.58561844,0.00014498,2]
[338765420,1726911046086,-1127.84650579,0.00014498,2]
[338765422,1726911046095,-2012.05,0.000145,2]
[338765424,1726911046105,-150.0,0.00014528,2]
[338765426,1726911046115,-201.0,0.0001453,2]
[338765427,1726911046124,-8021.67,0.00014543,2]
[338765429,1726911046134,-500.0,0.00014543,2]
[338765431,1726911046143,-1500.0,0.00014545,2]
[338765432,1726911046153,-215.0,0.0001455,2]
[338765433,1726911046163,-150.0,0.00014569,2]
[338765434,1726911046173,-159.97802171,0.00014575,2]
[338765435,1726911046183,-159.97802171,0.00014575,2]
[338765436,1726911046193,-537.78,0.00014581,2]
[338765437,1726911046203,-5122.11,0.00014592,2]
[338765438,1726911046212,-7107.35,0.00014592,2]
[338765439,1726911046222,-811.13,0.00014592,2]
[338765441,1726911046232,-593.89,0.00014592,2]
[338765442,1726911046243,-938.1,0.00014592,2]
[338765444,1726911046252,-20000.84,0.00014592,2]
[338765446,1726911046262,-500.0,0.00014592,2]
[338765448,1726911046272,-43370.23,0.00014592,2]
[338765450,1726911046281,-500.0,0.00014592,2]
[338765452,1726911046291,-2347.16,0.00014592,2]
[338765454,1726911046300,-500.0,0.00014592,2]
[338765456,1726911046309,-150.0,0.00014592,2]
[338765458,1726911046319,-3145.763985,0.00014592,2]
[338765460,1726911046328,-3145.763985,0.00014592,2]
[338765462,1726911046338,-413.84778754,0.00014593,2]
[338765464,1726911046347,-150.0,0.00014594,2]
[338765466,1726911046356,-150.0,0.00014595,2]
[338765468,1726911046366,-150.0,0.00014604,2]
[338765470,1726911046375,-215.0,0.0001461,2]
[338765473,1726911046385,-150.0,0.00014624,2]
[338765475,1726911046394,-180.41585507,0.00014638,2]
[338765477,1726911046403,-150.0,0.00014642,2]
[338765479,1726911046413,-150.0,0.00014646,2]
[338765481,1726911046422,-150.0,0.00014649,2]
[338765482,1726911046431,-150.0,0.00014653,2]
[338765485,1726911046441,-500.0,0.00014676,2]
[338765487,1726911046450,-2000.0,0.00014676,2]
[338765489,1726911046461,-500.0,0.00014676,2]
[338765491,1726911046471,-200.0,0.00014676,2]
[338765493,1726911046480,-1298.72072069,0.00014679,2]
[338765495,1726911046490,-215.0,0.0001468,2]
[338765497,1726911046499,-151.0,0.00014684,2]
[338765499,1726911046508,-151.0,0.00014684,2]
[338765501,1726911046517,-98676.57156349,0.00014689,2]
[338765503,1726911046527,-201.0,0.0001469,2]
[338765505,1726911046536,-166.71336192,0.00014692,2]
[338765507,1726911046545,-166.71336192,0.00014693,2]
[338765509,1726911046555,-12224.2977,0.00014694,2]
[338765511,1726911046564,-323.50776443,0.00014694,2]
[338765513,1726911046574,-166.71336192,0.00014694,2]
[338765515,1726911046585,-194.0,0.000147,2]
[338765517,1726911046594,-150.0,0.00014707,2]
[338765519,1726911046603,-150.0,0.00014717,2]
[338765521,1726911046613,-150.0,0.00014729,2]
[338765523,1726911046622,-215.0,0.0001474,2]
[338765525,1726911046631,-150.0,0.00014755,2]
[338765527,1726911046641,-150.0,0.00014764,2]
[338765529,1726911046651,-159.97802171,0.00014767,2]
[338765532,1726911046662,-159.97802171,0.00014767,2]
[338765534,1726911046672,-406.49401264,0.00014773,2]
[338765536,1726911046681,-151.0,0.00014774,2]
[338765538,1726911046691,-151.0,0.00014774,2]
[338765540,1726911046702,-203.873602,0.00014774,2]
[338765542,1726911046712,-151.0,0.00014774,2]
[338765544,1726911046723,-174.014877,0.00014774,2]
[338765546,1726911046732,-174.014877,0.00014774,2]
[338765548,1726911046742,-151.0,0.00014774,2]
[338765550,1726911046752,-151.0,0.00014774,2]
[338765552,1726911046762,-151.0,0.00014774,2]
[338765554,1726911046772,-150.0,0.0001478,2]
[338765556,1726911046783,-537.78,0.00014781,2]
[338765558,1726911046794,-8021.67,0.00014782,2]
[338765560,1726911046805,-500.0,0.00014782,2]
[338765563,1726911046817,-2258.1,0.00014782,2]
[338765564,1726911046827,-500.0,0.00014782,2]
[338765566,1726911046837,-151.0,0.00014782,2]
[338765568,1726911046848,-151.0,0.00014782,2]
[338765571,1726911046859,-259.135447,0.00014782,2]
[338765573,1726911046870,-259.135447,0.00014782,2]
[338765575,1726911046881,-151.0,0.00014782,2]
[338765577,1726911046895,-254.141226,0.00014782,2]
[338765579,1726911046905,-192.435675,0.00014782,2]
[338765581,1726911046915,-192.435675,0.00014782,2]
[338765584,1726911046927,-151.0,0.00014782,2]
[338765586,1726911046936,-500.0,0.00014783,2]
[338765588,1726911046946,-280.1754747,0.00014783,2]
[338765590,1726911046955,-500.0,0.00014783,2]
[338765592,1726911046965,-500.0,0.00014783,2]
[338765594,1726911046978,-500.0,0.00014783,2]
[338765596,1726911046987,-500.0,0.00014783,2]
[338765598,1726911046997,-323.02345267,0.00014783,2]
[338765600,1726911047007,-500.0,0.00014783,2]
[338765602,1726911047016,-500.0,0.00014783,2]
[338765604,1726911047027,-500.0,0.00014783,2]
[338765606,1726911047036,-500.0,0.00014783,2]
[338765608,1726911047045,-500.0,0.00014783,2]
[338765610,1726911047055,-241.47787101,0.00014783,2]
[338765612,1726911047064,-500.0,0.00014783,2]
[338765614,1726911047074,-500.0,0.00014783,2]
[338765616,1726911047084,-500.0,0.00014783,2]
[338765618,1726911047094,-500.0,0.00014783,2]
[338765620,1726911047103,-500.0,0.00014783,2]
[338765622,1726911047113,-500.0,0.00014783,2]
[338765624,1726911047124,-500.0,0.00014783,2]
[338765626,1726911047133,-500.0,0.00014783,2]
[338765628,1726911047142,-500.0,0.00014783,2]
[338765630,1726911047152,-500.0,0.00014783,2]
[338765632,1726911047162,-500.0,0.00014783,2]
[338765634,1726911047172,-500.0,0.00014783,2]
[338765636,1726911047182,-500.0,0.00014783,2]
[338765638,1726911047191,-500.0,0.00014783,2]
[338765640,1726911047201,-500.0,0.00014783,2]
[338765643,1726911047210,-500.0,0.00014783,2]
[338765645,1726911047221,-500.0,0.00014783,2]
[338765647,1726911047231,-500.0,0.00014783,2]
[338765649,1726911047240,-500.0,0.00014783,2]
[338765651,1726911047249,-500.0,0.00014783,2]
[338765653,1726911047259,-500.0,0.00014783,2]
[338765655,1726911047269,-500.0,0.00014783,2]
[338765657,1726911047279,-282.34,0.00014783,2]
[338765659,1726911047288,-500.0,0.00014783,2]
[338765661,1726911047298,-500.0,0.00014783,2]
[338765663,1726911047307,-500.0,0.00014783,2]
[338765665,1726911047316,-500.0,0.00014783,2]
[338765667,1726911047326,-500.0,0.00014783,2]
[338765669,1726911047335,-500.0,0.00014783,2]
[338765671,1726911047344,-500.0,0.00014783,2]
[338765673,1726911047354,-618.0506146,0.00014783,2]
[338765675,1726911047363,-500.0,0.00014783,2]